[Event "Early-Titled-Tuesday-Blitz-March-12-2024"]
[Site "Chess.com"]
[Date "2024.03.12"]
[Round "4"]
[White "djano"]
[Black "Cheer_Down"]
[Result "1-0"]
[WhiteElo "2576"]
[BlackElo "2419"]
[TimeControl "180+1"]
[EndTime "8:37:22 PDT"]
[Termination "djano won by resignation"]

1. e4 {[%clk 0:02:59.8]} 1... e5 {[%clk 0:02:59.7]} 2. d4 {[%clk 0:02:59.5]}
2... exd4 {[%clk 0:02:58.9]} 3. Nf3 {[%clk 0:02:59.8]} 3... Nc6 {[%clk
0:02:57.1]} 4. Bc4 {[%clk 0:02:59.8]} 4... Nf6 {[%clk 0:02:56.7]} 5. Ng5 {[%clk
0:02:59.4]} 5... d5 {[%clk 0:01:34.1]} 6. exd5 {[%clk 0:03:00.3]} 6... Qe7+
{[%clk 0:01:34]} 7. Kf1 {[%clk 0:02:56.1]} 7... Ne5 {[%clk 0:01:33.6]} 8. Qxd4
{[%clk 0:02:56.4]} 8... Nxc4 {[%clk 0:01:31.5]} 9. Qxc4 {[%clk 0:02:57.3]} 9...
h6 {[%clk 0:01:30.8]} 10. Nc3 {[%clk 0:02:57.7]} 10... hxg5 {[%clk 0:01:27.9]}
11. Bxg5 {[%clk 0:02:58.6]} 11... Qd8 {[%clk 0:01:26.8]} 12. Re1+ {[%clk
0:02:48.8]} 12... Be7 {[%clk 0:01:26.7]} 13. d6 {[%clk 0:02:44.8]} 13... cxd6
{[%clk 0:01:25.9]} 14. Nd5 {[%clk 0:02:34.4]} 14... Nxd5 {[%clk 0:01:12.3]} 15.
Qxd5 {[%clk 0:02:30.3]} 15... f6 {[%clk 0:01:12.5]} 16. Bf4 {[%clk 0:02:26.6]}
16... Kf8 {[%clk 0:01:01.7]} 17. h4 {[%clk 0:02:23.2]} 17... Qd7 {[%clk
0:00:46.9]} 18. h5 {[%clk 0:02:11.7]} 18... Qf5 {[%clk 0:00:46.4]} 19. Qd4
{[%clk 0:02:09.9]} 19... Qc5 {[%clk 0:00:44.4]} 20. Qe4 {[%clk 0:02:05]} 20...
d5 {[%clk 0:00:43.4]} 21. Qg6 {[%clk 0:02:05.2]} 21... Bd7 {[%clk 0:00:37.8]}
22. h6 {[%clk 0:02:04.8]} 22... gxh6 {[%clk 0:00:19.8]} 23. Bxh6+ {[%clk
0:02:04.7]} 23... Rxh6 {[%clk 0:00:19.9]} 24. Rxh6 {[%clk 0:02:03.4]} 1-0

[Event "Early-Titled-Tuesday-Blitz-March-12-2024"]
[Site "Chess.com"]
[Date "2024.03.12"]
[Round "4"]
[White "Sychev_on_YouTube"]
[Black "TregubovP"]
[Result "1-0"]
[WhiteElo "2919"]
[BlackElo "2695"]
[TimeControl "180+1"]
[EndTime "8:37:37 PDT"]
[Termination "Sychev_on_YouTube won by resignation"]

1. e4 {[%clk 0:03:00.6]} 1... c5 {[%clk 0:02:56.5]} 2. Nc3 {[%clk 0:02:54.3]}
2... e6 {[%clk 0:02:56.1]} 3. f4 {[%clk 0:02:54.8]} 3... Nc6 {[%clk 0:02:53.1]}
4. Nf3 {[%clk 0:02:55]} 4... a6 {[%clk 0:02:53.7]} 5. g3 {[%clk 0:02:52.5]} 5...
d5 {[%clk 0:02:53.6]} 6. Bg2 {[%clk 0:02:52.7]} 6... Nf6 {[%clk 0:02:52.6]} 7.
e5 {[%clk 0:02:52.5]} 7... Nd7 {[%clk 0:02:51.7]} 8. O-O {[%clk 0:02:52.3]} 8...
Be7 {[%clk 0:02:50.2]} 9. Ne2 {[%clk 0:02:48.9]} 9... O-O {[%clk 0:02:49.4]} 10.
d4 {[%clk 0:02:48.1]} 10... cxd4 {[%clk 0:02:44.2]} 11. Nexd4 {[%clk 0:02:47.5]}
11... Nc5 {[%clk 0:02:36.4]} 12. Be3 {[%clk 0:02:41.8]} 12... Bd7 {[%clk
0:02:34.8]} 13. Kh1 {[%clk 0:02:34.5]} 13... Rc8 {[%clk 0:02:33.6]} 14. g4
{[%clk 0:02:34.5]} 14... f6 {[%clk 0:02:24.1]} 15. c3 {[%clk 0:02:28.1]} 15...
fxe5 {[%clk 0:02:21.5]} 16. Nxc6 {[%clk 0:02:24.9]} 16... Bxc6 {[%clk
0:02:09.1]} 17. Nxe5 {[%clk 0:02:24.2]} 17... Nd7 {[%clk 0:01:59.6]} 18. Nxc6
{[%clk 0:02:02]} 18... bxc6 {[%clk 0:01:59.6]} 19. Qe2 {[%clk 0:02:02.6]} 19...
Bd6 {[%clk 0:01:57.1]} 20. Qxa6 {[%clk 0:02:00.7]} 20... Qh4 {[%clk 0:01:53.3]}
21. Qe2 {[%clk 0:01:58.6]} 21... Nf6 {[%clk 0:01:51]} 22. Bf3 {[%clk 0:01:50.7]}
22... h5 {[%clk 0:01:36.6]} 23. Bf2 {[%clk 0:01:28.2]} 23... Qh3 {[%clk
0:01:36.7]} 24. Qxe6+ {[%clk 0:01:26.5]} 24... Kh8 {[%clk 0:01:35.4]} 25. Bg2
{[%clk 0:01:22.5]} 25... Qxg4 {[%clk 0:01:35.2]} 26. Qxd6 {[%clk 0:01:22.4]}
26... Ne4 {[%clk 0:01:34.4]} 27. Bxe4 {[%clk 0:01:16.4]} 27... dxe4 {[%clk
0:01:34.7]} 28. Bd4 {[%clk 0:01:16.8]} 28... Rce8 {[%clk 0:01:21.5]} 29. Qh6+
{[%clk 0:01:12.9]} 29... Kg8 {[%clk 0:01:21.1]} 30. Bxg7 {[%clk 0:01:13.6]}
30... Rf5 {[%clk 0:01:09.4]} 31. Be5 {[%clk 0:01:05.2]} 31... Kf7 {[%clk
0:01:03.2]} 32. Rad1 {[%clk 0:01:03.2]} 1-0

[Event "Early-Titled-Tuesday-Blitz-March-12-2024"]
[Site "Chess.com"]
[Date "2024.03.12"]
[Round "4"]
[White "Rud_Makarian"]
[Black "Seochesspie"]
[Result "1-0"]
[WhiteElo "3016"]
[BlackElo "2863"]
[TimeControl "180+1"]
[EndTime "8:37:48 PDT"]
[Termination "Rud_Makarian won by resignation"]

1. c4 {[%clk 0:03:00.9]} 1... Nf6 {[%clk 0:02:59.9]} 2. Nc3 {[%clk 0:03:01.2]}
2... e6 {[%clk 0:03:00]} 3. e4 {[%clk 0:03:00.1]} 3... c5 {[%clk 0:03:00.1]} 4.
e5 {[%clk 0:02:59.3]} 4... Ng8 {[%clk 0:03:00.4]} 5. Nf3 {[%clk 0:02:59.9]} 5...
Nc6 {[%clk 0:03:00.3]} 6. d4 {[%clk 0:03:00.4]} 6... cxd4 {[%clk 0:03:00.6]} 7.
Nxd4 {[%clk 0:03:01.3]} 7... Nxe5 {[%clk 0:02:57.2]} 8. Ndb5 {[%clk 0:03:01.4]}
8... a6 {[%clk 0:02:48.6]} 9. Nd6+ {[%clk 0:03:01.2]} 9... Bxd6 {[%clk 0:02:49]}
10. Qxd6 {[%clk 0:03:01.4]} 10... f6 {[%clk 0:02:45.1]} 11. Be3 {[%clk
0:02:54.7]} 11... Ne7 {[%clk 0:02:42.7]} 12. Bb6 {[%clk 0:02:51.3]} 12... Nf5
{[%clk 0:02:42]} 13. Qb4 {[%clk 0:02:23.6]} 13... Qe7 {[%clk 0:02:31.7]} 14. c5
{[%clk 0:02:13.9]} 14... Nc6 {[%clk 0:02:26.5]} 15. Qf4 {[%clk 0:01:55.2]} 15...
d5 {[%clk 0:02:15.5]} 16. cxd6 {[%clk 0:01:31.6]} 16... Qxd6 {[%clk 0:02:05.3]}
17. Qxd6 {[%clk 0:01:31.3]} 17... Nxd6 {[%clk 0:02:06.2]} 18. O-O-O {[%clk
0:01:31]} 18... Nf5 {[%clk 0:01:44.6]} 19. Bc4 {[%clk 0:01:23.4]} 19... h5
{[%clk 0:01:41.2]} 20. Rhe1 {[%clk 0:01:22.5]} 20... Kf7 {[%clk 0:01:39]} 21.
Ne4 {[%clk 0:01:17.5]} 21... Ne5 {[%clk 0:01:36.6]} 22. Bb3 {[%clk 0:01:09.7]}
22... Bd7 {[%clk 0:01:30.9]} 23. f4 {[%clk 0:00:59.5]} 1-0

[Event "Early-Titled-Tuesday-Blitz-March-12-2024"]
[Site "Chess.com"]
[Date "2024.03.12"]
[Round "4"]
[White "ASKA538"]
[Black "rasmussvane"]
[Result "0-1"]
[WhiteElo "2262"]
[BlackElo "2962"]
[TimeControl "180+1"]
[EndTime "8:37:55 PDT"]
[Termination "rasmussvane won by resignation"]

1. e4 {[%clk 0:03:00.9]} 1... c6 {[%clk 0:02:55.8]} 2. Nf3 {[%clk 0:02:59.2]}
2... d5 {[%clk 0:02:53.9]} 3. Nc3 {[%clk 0:02:59.6]} 3... dxe4 {[%clk 0:02:49]}
4. Nxe4 {[%clk 0:02:58.5]} 4... Nf6 {[%clk 0:02:48.4]} 5. Qe2 {[%clk 0:02:57.4]}
5... Nxe4 {[%clk 0:02:47.1]} 6. Qxe4 {[%clk 0:02:56.9]} 6... Qa5 {[%clk
0:02:47]} 7. Bc4 {[%clk 0:02:52.8]} 7... Bf5 {[%clk 0:02:46.9]} 8. Qf4 {[%clk
0:02:44.9]} 8... e6 {[%clk 0:02:44.6]} 9. c3 {[%clk 0:02:39.3]} 9... Qd8 {[%clk
0:02:39.6]} 10. d4 {[%clk 0:02:35.5]} 10... Bd6 {[%clk 0:02:39.2]} 11. Qg5
{[%clk 0:02:33.3]} 11... O-O {[%clk 0:02:37.3]} 12. O-O {[%clk 0:02:30.5]} 12...
Nd7 {[%clk 0:02:36]} 13. Re1 {[%clk 0:02:25.7]} 13... Qxg5 {[%clk 0:02:27.7]}
14. Bxg5 {[%clk 0:02:24.8]} 14... Rfe8 {[%clk 0:02:28]} 15. Rad1 {[%clk
0:02:23.4]} 15... Bg4 {[%clk 0:02:24.2]} 16. Rd3 {[%clk 0:02:06.4]} 16... h6
{[%clk 0:02:19.5]} 17. Bh4 {[%clk 0:02:05.9]} 17... a5 {[%clk 0:02:17.5]} 18.
Bg3 {[%clk 0:02:03.1]} 18... Bxg3 {[%clk 0:01:55.8]} 19. hxg3 {[%clk 0:02:04]}
19... Nb6 {[%clk 0:01:51.2]} 20. Bb3 {[%clk 0:02:01]} 20... a4 {[%clk 0:01:49]}
21. Bd1 {[%clk 0:01:52.4]} 21... Nc4 {[%clk 0:01:36.9]} 22. b3 {[%clk
0:01:19.2]} 22... Bf5 {[%clk 0:01:28.6]} 23. Be2 {[%clk 0:00:58.2]} 23... Bxd3
{[%clk 0:01:25.6]} 24. Bxd3 {[%clk 0:00:59.1]} 24... Nb6 {[%clk 0:01:21.7]} 25.
Rb1 {[%clk 0:00:56.4]} 25... Nd5 {[%clk 0:01:20.3]} 26. Rc1 {[%clk 0:00:40.4]}
26... axb3 {[%clk 0:01:20.2]} 27. axb3 {[%clk 0:00:40.1]} 27... Ra3 {[%clk
0:01:20.8]} 28. Bc4 {[%clk 0:00:39.7]} 28... Rea8 {[%clk 0:01:20.8]} 29. Ne5
{[%clk 0:00:34.2]} 29... Ra1 {[%clk 0:01:19.4]} 30. Rxa1 {[%clk 0:00:33.1]}
30... Rxa1+ {[%clk 0:01:20.3]} 31. Kh2 {[%clk 0:00:33.8]} 31... Nxc3 {[%clk
0:01:19.5]} 0-1

[Event "Early-Titled-Tuesday-Blitz-March-12-2024"]
[Site "Chess.com"]
[Date "2024.03.12"]
[Round "4"]
[White "Hanging_pointer"]
[Black "suyu28"]
[Result "1-0"]
[WhiteElo "2697"]
[BlackElo "2881"]
[TimeControl "180+1"]
[EndTime "8:37:59 PDT"]
[Termination "Hanging_pointer won on time"]

1. d4 {[%clk 0:02:55.2]} 1... Nf6 {[%clk 0:02:59.8]} 2. c4 {[%clk 0:02:55.5]}
2... e6 {[%clk 0:02:59.3]} 3. Nf3 {[%clk 0:02:55.6]} 3... b6 {[%clk 0:02:51.7]}
4. Nc3 {[%clk 0:02:52.7]} 4... Bb4 {[%clk 0:02:49.7]} 5. Qc2 {[%clk 0:02:51.6]}
5... Bb7 {[%clk 0:02:48.6]} 6. Bg5 {[%clk 0:02:51]} 6... h6 {[%clk 0:02:47.5]}
7. Bxf6 {[%clk 0:02:49.4]} 7... Qxf6 {[%clk 0:02:47]} 8. a3 {[%clk 0:02:50]}
8... Bxc3+ {[%clk 0:02:46.6]} 9. Qxc3 {[%clk 0:02:50.6]} 9... O-O {[%clk
0:02:43.5]} 10. g3 {[%clk 0:02:48.3]} 10... d6 {[%clk 0:01:42]} 11. Bg2 {[%clk
0:02:45.1]} 11... Nd7 {[%clk 0:01:42.5]} 12. O-O {[%clk 0:02:42.7]} 12... Rfe8
{[%clk 0:01:42.4]} 13. Rfe1 {[%clk 0:02:38]} 13... Be4 {[%clk 0:01:41.4]} 14.
Rad1 {[%clk 0:02:34.9]} 14... Rad8 {[%clk 0:01:40.2]} 15. b4 {[%clk 0:02:32.9]}
15... c5 {[%clk 0:01:33.2]} 16. Qe3 {[%clk 0:02:22.8]} 16... Ba8 {[%clk
0:01:19]} 17. dxc5 {[%clk 0:02:21.2]} 17... dxc5 {[%clk 0:01:19.9]} 18. Rd6
{[%clk 0:02:20.2]} 18... cxb4 {[%clk 0:00:57.8]} 19. axb4 {[%clk 0:02:15.9]}
19... Bxf3 {[%clk 0:00:46.5]} 20. exf3 {[%clk 0:02:12.5]} 20... Nf8 {[%clk
0:00:41.4]} 21. Rxd8 {[%clk 0:02:06.4]} 21... Rxd8 {[%clk 0:00:41.5]} 22. c5
{[%clk 0:02:07.3]} 22... bxc5 {[%clk 0:00:36.7]} 23. bxc5 {[%clk 0:02:08.2]}
23... Qb2 {[%clk 0:00:29.1]} 24. c6 {[%clk 0:02:06.3]} 24... Qc2 {[%clk
0:00:27.6]} 25. f4 {[%clk 0:02:04.4]} 25... Rd1 {[%clk 0:00:25.4]} 26. Bf3
{[%clk 0:01:57.6]} 26... Rxe1+ {[%clk 0:00:19.1]} 27. Qxe1 {[%clk 0:01:58.5]}
27... Qc5 {[%clk 0:00:17.5]} 28. Qb1 {[%clk 0:01:47.3]} 28... a5 {[%clk
0:00:11.5]} 29. Qb8 {[%clk 0:01:45.2]} 29... Qc3 {[%clk 0:00:05.7]} 30. Kg2
{[%clk 0:01:44.9]} 30... e5 {[%clk 0:00:05.2]} 31. fxe5 {[%clk 0:01:43.4]} 1-0

[Event "Early-Titled-Tuesday-Blitz-March-12-2024"]
[Site "Chess.com"]
[Date "2024.03.12"]
[Round "4"]
[White "lilylg"]
[Black "Russian_berezka"]
[Result "0-1"]
[WhiteElo "2173"]
[BlackElo "2577"]
[TimeControl "180+1"]
[EndTime "8:38:13 PDT"]
[Termination "Russian_berezka won by checkmate"]

1. d4 {[%clk 0:02:54]} 1... f5 {[%clk 0:02:44.1]} 2. c4 {[%clk 0:02:34.1]} 2...
Nf6 {[%clk 0:02:43.7]} 3. g3 {[%clk 0:02:34.3]} 3... g6 {[%clk 0:02:43.5]} 4.
Bg2 {[%clk 0:02:34.3]} 4... Bg7 {[%clk 0:02:44.2]} 5. Nc3 {[%clk 0:02:19.4]}
5... O-O {[%clk 0:02:43.6]} 6. b3 {[%clk 0:02:17.6]} 6... d6 {[%clk 0:02:40.1]}
7. Nf3 {[%clk 0:02:16.6]} 7... e5 {[%clk 0:02:28.6]} 8. dxe5 {[%clk 0:02:10.7]}
8... dxe5 {[%clk 0:02:29.5]} 9. Qxd8 {[%clk 0:02:10.9]} 9... Rxd8 {[%clk
0:02:29.6]} 10. Bb2 {[%clk 0:02:11.5]} 10... e4 {[%clk 0:02:26.1]} 11. Nd2
{[%clk 0:02:05.8]} 11... a6 {[%clk 0:02:19.6]} 12. e3 {[%clk 0:01:54.2]} 12...
Nc6 {[%clk 0:02:19.1]} 13. Ne2 {[%clk 0:01:44]} 13... Nb4 {[%clk 0:02:18]} 14.
Bxf6 {[%clk 0:01:28.6]} 14... Bxf6 {[%clk 0:01:56.6]} 15. Rb1 {[%clk 0:01:01.9]}
15... Nxa2 {[%clk 0:01:51.5]} 16. Nxe4 {[%clk 0:00:32.2]} 16... fxe4 {[%clk
0:01:47.5]} 17. Bxe4 {[%clk 0:00:33.1]} 17... Nc3 {[%clk 0:01:39.1]} 18. Nxc3
{[%clk 0:00:19.8]} 18... Bxc3+ {[%clk 0:01:40]} 19. Kf1 {[%clk 0:00:18.4]} 19...
Bh3+ {[%clk 0:01:38]} 20. Bg2 {[%clk 0:00:18.3]} 20... Bf5 {[%clk 0:01:32.7]}
21. e4 {[%clk 0:00:17.8]} 21... Be6 {[%clk 0:01:29.5]} 22. f4 {[%clk 0:00:10.3]}
22... Rd2 {[%clk 0:01:22.5]} 23. Rc1 {[%clk 0:00:07.4]} 23... Bb4 {[%clk
0:01:20.9]} 24. e5 {[%clk 0:00:04.9]} 24... Rad8 {[%clk 0:01:16.7]} 25. Bxb7
{[%clk 0:00:04.7]} 25... Bh3+ {[%clk 0:01:16.3]} 26. Kg1 {[%clk 0:00:02.2]}
26... Bc5# {[%clk 0:01:15.9]} 0-1

[Event "Early-Titled-Tuesday-Blitz-March-12-2024"]
[Site "Chess.com"]
[Date "2024.03.12"]
[Round "4"]
[White "DenLaz"]
[Black "ActorXu"]
[Result "1-0"]
[WhiteElo "3047"]
[BlackElo "2866"]
[TimeControl "180+1"]
[EndTime "8:38:20 PDT"]
[Termination "DenLaz won by resignation"]

1. d4 {[%clk 0:03:00.9]} 1... Nf6 {[%clk 0:02:57.4]} 2. c4 {[%clk 0:03:01.5]}
2... e6 {[%clk 0:02:56.6]} 3. Nf3 {[%clk 0:03:02.1]} 3... d5 {[%clk 0:02:56.8]}
4. g3 {[%clk 0:03:02.8]} 4... Be7 {[%clk 0:02:56.7]} 5. Bg2 {[%clk 0:03:02.7]}
5... O-O {[%clk 0:02:57.4]} 6. O-O {[%clk 0:03:02.9]} 6... dxc4 {[%clk
0:02:58.1]} 7. Qc2 {[%clk 0:03:02.9]} 7... a6 {[%clk 0:02:58.7]} 8. a4 {[%clk
0:03:02.2]} 8... Bd7 {[%clk 0:02:58.6]} 9. Qxc4 {[%clk 0:03:02.7]} 9... Bc6
{[%clk 0:02:59.3]} 10. Bf4 {[%clk 0:02:59]} 10... Bd6 {[%clk 0:02:58.4]} 11. Bg5
{[%clk 0:02:58.9]} 11... Nbd7 {[%clk 0:02:56.3]} 12. Nc3 {[%clk 0:02:56.9]}
12... h6 {[%clk 0:02:50]} 13. Bxf6 {[%clk 0:02:56.2]} 13... Nxf6 {[%clk
0:02:50.4]} 14. Rfd1 {[%clk 0:02:56.6]} 14... a5 {[%clk 0:02:44.6]} 15. e3
{[%clk 0:02:56.3]} 15... Bxf3 {[%clk 0:02:44.1]} 16. Bxf3 {[%clk 0:02:56.1]}
16... c6 {[%clk 0:02:44.7]} 17. e4 {[%clk 0:02:53.8]} 17... Bb4 {[%clk 0:02:43]}
18. Kg2 {[%clk 0:02:51.4]} 18... Qe7 {[%clk 0:02:27]} 19. e5 {[%clk 0:02:50]}
19... Nd5 {[%clk 0:02:22.5]} 20. Ne4 {[%clk 0:02:48.9]} 20... Rac8 {[%clk
0:02:08.4]} 21. h4 {[%clk 0:02:45.3]} 21... Rfd8 {[%clk 0:02:07.4]} 22. Rac1
{[%clk 0:02:42]} 22... Qc7 {[%clk 0:01:45.5]} 23. h5 {[%clk 0:02:38.9]} 23...
Bf8 {[%clk 0:01:43.4]} 24. Nc3 {[%clk 0:02:32.6]} 24... Nb4 {[%clk 0:01:21.1]}
25. Be4 {[%clk 0:02:21.3]} 25... b6 {[%clk 0:01:16]} 26. Qe2 {[%clk 0:02:19.8]}
26... Qb8 {[%clk 0:01:07.7]} 27. Bb1 {[%clk 0:02:17.5]} 27... Nd5 {[%clk
0:00:22]} 28. Nxd5 {[%clk 0:01:48.5]} 28... Rxd5 {[%clk 0:00:13.3]} 29. Qe4
{[%clk 0:01:46.6]} 29... g6 {[%clk 0:00:09.1]} 30. hxg6 {[%clk 0:01:46.3]} 30...
Qb7 {[%clk 0:00:08.3]} 31. Ba2 {[%clk 0:01:43]} 31... Rdd8 {[%clk 0:00:06.6]}
32. gxf7+ {[%clk 0:01:41.5]} 32... Qxf7 {[%clk 0:00:06.6]} 33. Rxc6 {[%clk
0:01:40.3]} 33... Rxc6 {[%clk 0:00:06.5]} 34. Qxc6 {[%clk 0:01:41.2]} 34... Re8
{[%clk 0:00:07]} 35. Rd3 {[%clk 0:01:39.5]} 35... Qh5 {[%clk 0:00:06.5]} 36.
Bxe6+ {[%clk 0:01:38.7]} 36... Kh8 {[%clk 0:00:06.3]} 37. Rf3 {[%clk 0:01:36.8]}
37... Bg7 {[%clk 0:00:06.7]} 38. Bf7 {[%clk 0:01:37]} 1-0

[Event "Early-Titled-Tuesday-Blitz-March-12-2024"]
[Site "Chess.com"]
[Date "2024.03.12"]
[Round "4"]
[White "Zheenbekov86"]
[Black "david_gomez"]
[Result "0-1"]
[WhiteElo "2433"]
[BlackElo "2616"]
[TimeControl "180+1"]
[EndTime "8:38:21 PDT"]
[Termination "david_gomez won on time"]

1. d4 {[%clk 0:02:59]} 1... d5 {[%clk 0:02:58.2]} 2. Nf3 {[%clk 0:02:58.4]} 2...
c5 {[%clk 0:02:56.9]} 3. e3 {[%clk 0:02:55.5]} 3... e6 {[%clk 0:02:53.3]} 4. b3
{[%clk 0:02:54.3]} 4... Nf6 {[%clk 0:02:52.3]} 5. Bb2 {[%clk 0:02:54.1]} 5...
Nc6 {[%clk 0:02:51.7]} 6. Nbd2 {[%clk 0:02:53.3]} 6... Bd6 {[%clk 0:02:45.7]} 7.
Ne5 {[%clk 0:02:29.9]} 7... O-O {[%clk 0:02:36.9]} 8. Bd3 {[%clk 0:02:24.3]}
8... Qc7 {[%clk 0:02:26]} 9. Nxc6 {[%clk 0:02:15.9]} 9... bxc6 {[%clk
0:02:22.2]} 10. h3 {[%clk 0:01:58.6]} 10... cxd4 {[%clk 0:02:19.9]} 11. exd4
{[%clk 0:01:58.3]} 11... e5 {[%clk 0:02:17.5]} 12. dxe5 {[%clk 0:01:38.5]} 12...
Bxe5 {[%clk 0:02:17.1]} 13. Bxe5 {[%clk 0:01:35.5]} 13... Qxe5+ {[%clk
0:02:16.4]} 14. Kf1 {[%clk 0:01:31]} 14... c5 {[%clk 0:02:13.5]} 15. Nf3 {[%clk
0:01:30.7]} 15... Qd6 {[%clk 0:02:13.1]} 16. g3 {[%clk 0:01:26.8]} 16... Bb7
{[%clk 0:02:12.4]} 17. Kg2 {[%clk 0:01:26.8]} 17... d4 {[%clk 0:02:04.3]} 18.
Re1 {[%clk 0:01:25.9]} 18... Nd5 {[%clk 0:02:01]} 19. Qd2 {[%clk 0:00:56.7]}
19... Nc3 {[%clk 0:01:59.2]} 20. Qf4 {[%clk 0:00:51.5]} 20... Qc6 {[%clk
0:01:47.6]} 21. h4 {[%clk 0:00:48.3]} 21... Rfe8 {[%clk 0:01:33.2]} 22. a4
{[%clk 0:00:47.3]} 22... Re6 {[%clk 0:01:24.4]} 23. Rxe6 {[%clk 0:00:13]} 23...
fxe6 {[%clk 0:01:23.4]} 24. Bb5 {[%clk 0:00:13.2]} 24... Qe4 {[%clk 0:01:14.2]}
0-1

[Event "Early-Titled-Tuesday-Blitz-March-12-2024"]
[Site "Chess.com"]
[Date "2024.03.12"]
[Round "4"]
[White "StankovicIvan"]
[Black "Egor_Koshulyan"]
[Result "1-0"]
[WhiteElo "2542"]
[BlackElo "2757"]
[TimeControl "180+1"]
[EndTime "8:38:28 PDT"]
[Termination "StankovicIvan won by resignation"]

1. e4 {[%clk 0:03:00.9]} 1... c5 {[%clk 0:02:59.3]} 2. c4 {[%clk 0:03:00.9]}
2... Nc6 {[%clk 0:02:56.9]} 3. Nc3 {[%clk 0:03:01.8]} 3... g6 {[%clk 0:02:57]}
4. g3 {[%clk 0:03:02.3]} 4... Bg7 {[%clk 0:02:57.5]} 5. Bg2 {[%clk 0:03:02.1]}
5... e6 {[%clk 0:02:57.2]} 6. Nge2 {[%clk 0:03:02.5]} 6... Nge7 {[%clk
0:02:58.1]} 7. d3 {[%clk 0:03:02.8]} 7... O-O {[%clk 0:02:58.4]} 8. Be3 {[%clk
0:03:03.4]} 8... d6 {[%clk 0:02:59.3]} 9. d4 {[%clk 0:03:03.4]} 9... b6 {[%clk
0:02:57]} 10. O-O {[%clk 0:03:03]} 10... Bb7 {[%clk 0:02:57.1]} 11. Rc1 {[%clk
0:03:02.6]} 11... Rc8 {[%clk 0:02:56.9]} 12. b3 {[%clk 0:03:02.7]} 12... e5
{[%clk 0:02:54.9]} 13. dxe5 {[%clk 0:03:02.9]} 13... dxe5 {[%clk 0:02:55.8]} 14.
Nd5 {[%clk 0:03:03.5]} 14... Nd4 {[%clk 0:02:55.5]} 15. Nxd4 {[%clk 0:03:02.5]}
15... cxd4 {[%clk 0:02:52.8]} 16. Bg5 {[%clk 0:03:02.9]} 16... f6 {[%clk
0:02:52.7]} 17. Bd2 {[%clk 0:03:01.6]} 17... f5 {[%clk 0:02:37.3]} 18. Bb4
{[%clk 0:02:19.3]} 18... Nxd5 {[%clk 0:02:22.2]} 19. cxd5 {[%clk 0:01:45.2]}
19... Rf7 {[%clk 0:02:22.3]} 20. Qd3 {[%clk 0:01:25.5]} 20... f4 {[%clk
0:02:01.3]} 21. Bh3 {[%clk 0:01:21.5]} 21... Rxc1 {[%clk 0:01:51.4]} 22. Rxc1
{[%clk 0:01:22.4]} 22... Rc7 {[%clk 0:01:28.7]} 23. Be6+ {[%clk 0:01:04.5]}
23... Kh8 {[%clk 0:01:28.6]} 24. Rxc7 {[%clk 0:00:59.7]} 24... Qxc7 {[%clk
0:01:29.5]} 25. Qc4 {[%clk 0:01:00.2]} 25... Qxc4 {[%clk 0:01:19.5]} 26. bxc4
{[%clk 0:01:01.1]} 26... Ba6 {[%clk 0:01:19.8]} 27. d6 {[%clk 0:00:59.3]} 27...
Bf6 {[%clk 0:01:19.5]} 28. Kf1 {[%clk 0:00:52]} 28... Kg7 {[%clk 0:01:17.1]} 29.
Ke2 {[%clk 0:00:51.6]} 29... fxg3 {[%clk 0:01:16.5]} 30. hxg3 {[%clk 0:00:51.3]}
30... Bd8 {[%clk 0:01:17.1]} 31. Kd3 {[%clk 0:00:51.1]} 31... Kf6 {[%clk
0:01:18]} 32. Bh3 {[%clk 0:00:49.8]} 32... g5 {[%clk 0:01:16.1]} 33. f4 {[%clk
0:00:47.3]} 33... gxf4 {[%clk 0:01:14.4]} 34. gxf4 {[%clk 0:00:48.2]} 34... h5
{[%clk 0:01:14.6]} 35. Be1 {[%clk 0:00:45]} 35... b5 {[%clk 0:00:57.8]} 36.
fxe5+ {[%clk 0:00:42.4]} 36... Kf7 {[%clk 0:00:58.5]} 37. e6+ {[%clk 0:00:39.6]}
37... Kf6 {[%clk 0:00:58]} 38. Bh4+ {[%clk 0:00:39]} 38... Ke5 {[%clk
0:00:57.8]} 39. Bg3+ {[%clk 0:00:37.1]} 39... Kf6 {[%clk 0:00:58]} 40. Kxd4
{[%clk 0:00:37.3]} 40... bxc4 {[%clk 0:00:57.3]} 41. Bh4+ {[%clk 0:00:37.6]} 1-0

[Event "Early-Titled-Tuesday-Blitz-March-12-2024"]
[Site "Chess.com"]
[Date "2024.03.12"]
[Round "4"]
[White "rikchessmx"]
[Black "Bilan_Danila"]
[Result "0-1"]
[WhiteElo "2293"]
[BlackElo "2562"]
[TimeControl "180+1"]
[EndTime "8:38:29 PDT"]
[Termination "Bilan_Danila won by resignation"]

1. e4 {[%clk 0:03:00.9]} 1... c6 {[%clk 0:02:58.7]} 2. d4 {[%clk 0:02:58.9]}
2... d5 {[%clk 0:02:58.7]} 3. Nc3 {[%clk 0:02:59.8]} 3... b5 {[%clk 0:02:58.2]}
4. exd5 {[%clk 0:02:59.1]} 4... b4 {[%clk 0:02:58.4]} 5. Nce2 {[%clk 0:02:58.7]}
5... cxd5 {[%clk 0:02:58.6]} 6. Ng3 {[%clk 0:02:58.6]} 6... Nf6 {[%clk
0:02:59.1]} 7. h3 {[%clk 0:02:58.4]} 7... g6 {[%clk 0:02:58.5]} 8. Nf3 {[%clk
0:02:58.6]} 8... Bg7 {[%clk 0:02:57.5]} 9. a3 {[%clk 0:02:55.7]} 9... bxa3
{[%clk 0:02:56.4]} 10. Rxa3 {[%clk 0:02:55.1]} 10... O-O {[%clk 0:02:55]} 11.
Bd3 {[%clk 0:02:54.8]} 11... a5 {[%clk 0:02:52.2]} 12. Bd2 {[%clk 0:02:53.7]}
12... Nc6 {[%clk 0:02:50]} 13. c3 {[%clk 0:02:51.7]} 13... Ba6 {[%clk
0:02:47.3]} 14. Bxa6 {[%clk 0:02:51]} 14... Rxa6 {[%clk 0:02:48.2]} 15. O-O
{[%clk 0:02:50.1]} 15... Rb6 {[%clk 0:02:47.3]} 16. Bc1 {[%clk 0:02:47.1]} 16...
Qd6 {[%clk 0:02:40]} 17. Re1 {[%clk 0:02:46.1]} 17... Nd7 {[%clk 0:02:33.1]} 18.
Qe2 {[%clk 0:02:44.7]} 18... e5 {[%clk 0:02:21.9]} 19. dxe5 {[%clk 0:02:43.9]}
19... Ndxe5 {[%clk 0:02:21.3]} 20. Nxe5 {[%clk 0:02:27.7]} 20... Bxe5 {[%clk
0:02:20.7]} 21. Nf1 {[%clk 0:02:27.9]} 21... Bg7 {[%clk 0:02:03.7]} 22. Nd2
{[%clk 0:02:25.3]} 22... Rb7 {[%clk 0:01:57.4]} 23. Qa6 {[%clk 0:02:14.7]} 23...
Rfb8 {[%clk 0:01:35.1]} 24. Nf3 {[%clk 0:01:57.5]} 24... Rb6 {[%clk 0:01:29.6]}
25. Qd3 {[%clk 0:01:54.6]} 25... d4 {[%clk 0:01:12.9]} 26. g3 {[%clk 0:01:49.7]}
26... Qd7 {[%clk 0:00:53.7]} 27. cxd4 {[%clk 0:01:39.5]} 27... Nxd4 {[%clk
0:00:43.3]} 28. Ne5 {[%clk 0:01:33.4]} 28... Qd5 {[%clk 0:00:32.6]} 29. Nc4
{[%clk 0:01:14.5]} 29... Re6 {[%clk 0:00:20.7]} 30. Rxe6 {[%clk 0:01:12.2]}
30... Qxe6 {[%clk 0:00:21.6]} 31. Be3 {[%clk 0:01:05.7]} 31... Nf3+ {[%clk
0:00:19.5]} 32. Kg2 {[%clk 0:01:05.6]} 32... Ne1+ {[%clk 0:00:19.7]} 0-1